fUST/lending_fUST_20250826
["ID","MTS","AMOUNT","RATE_DAILY","PERIOD"]
[381448105,1756211439433,-1189.90614119,0.00031923,2]
[381448106,1756211439442,-882.10293333,0.00031923,30]
[381448107,1756211439451,-579.06340537,0.00031923,5]
[381448108,1756211439460,-6409.8759588,0.00031923,30]
[381448109,1756211439469,-258.20860713,0.00031923,2]
[381448110,1756211439479,-142193.36662637,0.00031923,2]
[381448111,1756211439489,-845.07960918,0.00031985,2]
[381448112,1756211439498,-160.0,0.00031985,2]
[381448113,1756211439507,-160.0,0.00031985,2]
[381448114,1756211439516,-51361.60200168,0.0003199,2]
[381448115,1756211439526,-5953.45,0.00032,2]
[381448116,1756211439535,-216.09257821,0.00032,7]
[381448117,1756211439545,-3358.3,0.00032,7]
[381448118,1756211439554,-217.18350301,0.00032,7]
[381448119,1756211439564,-160.0,0.00032,7]
[381448120,1756211439575,-51980.34,0.00032,7]
[381448121,1756211439588,-160.0,0.00032,7]
[381448122,1756211439597,-2006.6,0.00032,7]
[381448123,1756211439607,-500.0,0.00032196,2]
[381448124,1756211439616,-220.0,0.0003228,2]
[381448125,1756211439626,-500.0,0.0003247,2]
[381448126,1756211439635,-500.0,0.0003255,5]
[381448127,1756211439644,-500.0,0.0003255,5]
[381448128,1756211439654,-500.0,0.00032744,2]
[381448129,1756211439663,-4181.54536781,0.0003288,2]
[381448130,1756211439672,-501.80461637,0.00033,5]
[381448131,1756211439682,-473.30564536,0.00033,5]
[381448132,1756211439692,-500.0,0.00033,5]
[381448133,1756211439701,-500.0,0.00033,5]
[381448134,1756211439710,-501.85733234,0.00033,5]
[381448135,1756211439720,-500.0,0.00033,5]
[381448136,1756211439729,-500.0,0.00033018,2]
[381448137,1756211439738,-179.69451932,0.00033085,10]
[381448138,1756211439748,-1131.7330719,0.00033098,5]
[381448139,1756211439757,-1000.0,0.00033098,5]
[381448140,1756211439767,-2360.00123217,0.00033216,2]
[381448141,1756211439776,-1459.8,0.00033282,3]
[381448142,1756211439785,-729.9,0.00033282,3]
[381448143,1756211439795,-364.94,0.00033282,3]
[381448144,1756211439804,-2704.17714854,0.00033283,2]
[381448145,1756211439813,-1108.62,0.00033283,3]
[381448146,1756211439822,-1385.76,0.00033283,3]
[381448148,1756211440019,-692.88,0.00033283,3]
[381448149,1756211440029,-623.6,0.00033283,3]
[381448150,1756211440038,-311.8,0.00033283,3]
[381448151,1756211440047,-500.0,0.00033548,5]
[381448152,1756211440057,-365.60859336,0.00033548,5]
[381448153,1756211440067,-203.91482118,0.00033555,20]
[381448154,1756211440076,-1500.0,0.00033646,5]
[381448155,1756211440085,-431.24807378,0.00033666,2]
[381448156,1756211440095,-5000.0,0.00033923,4]
[381448157,1756211440104,-1318.0,0.00034046,3]
[381448158,1756211440114,-2000.0,0.00034194,5]
[381448159,1756211440123,-2006.6,0.000342,7]
[381448160,1756211440132,-560.0,0.00034233,2]
[381448161,1756211440141,-300.0,0.00034233,3]
[381448162,1756211440151,-2500.0,0.00034742,5]
[381448163,1756211440160,-363.75004704,0.00034865,120]
[381448164,1756211440169,-1200.0,0.00034964,3]
[381448165,1756211440179,-2137.865127,0.00034965,2]
[381448166,1756211440188,-2054.44322154,0.00035,4]
[381448167,1756211440197,-3001.5405461,0.00035,2]
[381448168,1756211440207,-106485.15548066,0.00035,7]
[381448169,1756211440217,-1722.64039975,0.00035,120]
[381448170,1756211440226,-151.0,0.00035,7]
[381448171,1756211440235,-1720.52168,0.00035,7]
[381448172,1756211440244,-1720.52168,0.00035,7]
[381448173,1756211440254,-217.18350301,0.00035,7]
[381448174,1756211440263,-1720.52168,0.00035,7]
[381448175,1756211440274,-1720.52168,0.00035,7]
[381448176,1756211440283,-51980.34,0.00035,14]
[381448177,1756211440293,-151.0,0.00035,7]
[381448178,1756211440303,-151.0,0.00035,7]
[381448179,1756211440311,-151.0,0.00035,7]
[381448180,1756211440321,-151.0,0.00035,7]
[381448181,1756211440331,-151.0,0.00035,7]
[381448182,1756211440340,-151.0,0.00035,7]
[381448183,1756211440349,-151.0,0.00035,7]
[381448184,1756211440359,-250.0,0.00035287,2]
[381448185,1756211440368,-3000.0,0.0003529,5]
[381448186,1756211440377,-431.24807378,0.00035447,2]
[381448187,1756211440387,-3970.99491229,0.00035507,2]
[381448188,1756211440397,-500.0,0.00035616,7]
[381448189,1756211440407,-500.0,0.00035616,7]
[381448190,1756211440416,-191.41605319,0.00035616,7]
[381448191,1756211440425,-587.347276,0.00035724,2]
[381448192,1756211440435,-179.488707,0.00035734,2]
[381448193,1756211440444,-3358.3,0.000358,7]
[381448194,1756211440453,-203.91482118,0.00035831,25]
[381448195,1756211440463,-2488.21088667,0.00035838,5]
[381448196,1756211440472,-48797.58092343,0.00036,60]
[381448197,1756211440481,-311.94719537,0.00036,120]
[381448198,1756211440490,-168.0,0.00036645,2]
[381448199,1756211440500,-783.0,0.00036826,2]
[381448200,1756211440510,-2006.6,0.000369,7]
[381448201,1756211440519,-181.172505,0.00036917,120]
[381448202,1756211440528,-168.0,0.00036987,2]
[381448203,1756211440538,-363.75004703,0.0003722,120]
[381448204,1756211440547,-431.24807378,0.00037227,2]
[381448205,1756211440557,-168.0,0.00037239,2]
[381448206,1756211440566,-150.52156,0.00037351,20]
[381448207,1756211440576,-5953.45,0.000374,14]
[381448208,1756211440590,-51980.34,0.000376,14]
[381448209,1756211440599,-163.0,0.00037796,120]
[381448210,1756211440609,-284.16433675,0.00037798,120]
[381448211,1756211440618,-160.0,0.00037928,3]
[381448212,1756211440629,-168.0,0.00037987,2]
[381448213,1756211440639,-741.35720244,0.00038074,2]
[381448214,1756211440647,-203.91482118,0.00038107,30]
[381448215,1756211440658,-3358.3,0.000383,7]
[381448216,1756211440667,-168.0,0.00038491,2]
[381448217,1756211440677,-169.23788045,0.00038527,2]
[381448218,1756211440687,-676.27457029,0.00038527,2]
[381448219,1756211440696,-1112.0,0.000386,120]
[381448220,1756211440707,-592.36030928,0.00038742,2]
[381448221,1756211440716,-965.16951328,0.00038742,2]
[381448222,1756211440726,-3856.81737508,0.00038742,2]
[381448223,1756211440735,-160.0,0.00038929,2]
[381448224,1756211440745,-160.0,0.00038968,2]
[381448225,1756211440755,-232.53539143,0.00038968,2]
[381448226,1756211440765,-217.18350301,0.00038968,2]
[381448227,1756211440774,-160.0,0.00038968,2]
[381448228,1756211440783,-2006.6,0.00039,7]
[381448229,1756211440793,-431.24807378,0.00039007,2]
[381448230,1756211440803,-974.0,0.00039023,2]
[381448231,1756211440814,-638.0,0.00039023,2]
[381448232,1756211440824,-2156.0,0.00039023,2]
[381448233,1756211440833,-168.0,0.00039119,2]
[381448234,1756211440843,-187.09935736,0.0003912,3]
[381448235,1756211440852,-26326.5291615,0.00039186,3]
[381448236,1756211440861,-979.04866883,0.00039186,3]
[381448237,1756211440871,-216.09257821,0.00039186,3]
[381448238,1756211440881,-217.18350301,0.00039186,3]
[381448239,1756211440891,-160.0,0.00039186,3]
[381448240,1756211440900,-160.0,0.00039186,3]
[381448241,1756211440910,-151.0,0.00039186,30]
[381448242,1756211440920,-151.0,0.00039186,30]
[381448243,1756211440929,-151.0,0.00039186,30]
[381448244,1756211440939,-151.0,0.00039186,30]
[381448245,1756211440949,-151.0,0.00039186,30]
[381448246,1756211440959,-3970.99491229,0.0003919,2]
[381448247,1756211440969,-151.0,0.00039195,7]
[381448248,1756211440980,-151.0,0.00039195,2]
[381448249,1756211440990,-151.0,0.00039195,7]
[381448250,1756211441001,-3753.87776674,0.00039196,6]
[381448251,1756211441010,-20919.1952744,0.00039196,2]
[381448252,1756211441020,-254.5430989,0.00039196,2]
[381448253,1756211441029,-481.7280685,0.00039196,2]
[381448254,1756211441039,-35841.3446204,0.00039196,2]
[381448255,1756211441048,-9870.85808037,0.000392,2]
[381448256,1756211441058,-26326.5291615,0.0003927,3]
[381448257,1756211441068,-979.04866883,0.0003927,3]
[381448258,1756211441077,-217.18350301,0.0003927,3]
[381448259,1756211441087,-500.0,0.00039273,5]
[381448260,1756211441097,-500.0,0.00039273,5]
[381448261,1756211441108,-500.0,0.00039273,5]
[381448262,1756211441118,-500.0,0.00039273,5]
[381448263,1756211441127,-500.0,0.00039273,5]
[381448264,1756211441137,-500.0,0.00039273,5]
[381448265,1756211441146,-500.0,0.00039273,5]
[381448266,1756211441156,-500.0,0.00039273,5]
[381448267,1756211441166,-500.0,0.00039273,5]
[381448268,1756211441175,-500.0,0.00039273,5]
[381448269,1756211441185,-179.33548377,0.00039276,2]
[381448270,1756211441194,-151.0,0.00039276,2]
[381448271,1756211441204,-151.0,0.00039276,2]
[381448272,1756211441213,-151.0,0.00039276,2]
[381448273,1756211441222,-152.256998,0.00039276,2]
[381448274,1756211441231,-1720.52168,0.0003928,30]
[381448275,1756211441241,-1720.52168,0.0003928,30]
[381448276,1756211441251,-1720.52168,0.0003928,30]
[381448277,1756211441261,-1720.52168,0.0003928,30]
[381448278,1756211441270,-78979.5874846,0.0003928,3]
[381448279,1756211441280,-2937.14600649,0.0003928,3]
[381448280,1756211441290,-500.0,0.00039289,120]
[381448281,1756211441300,-105306.116646,0.0003929,3]
[381448282,1756211441310,-7832.38935064,0.0003929,3]
[381448283,1756211441320,-151.0,0.0003929,30]
[381448284,1756211441329,-151.0,0.0003929,30]
[381448285,1756211441339,-219.629026,0.0003929,30]
[381448286,1756211441349,-151.0,0.0003929,30]
[381448287,1756211441359,-199.0,0.000393,120]
[381448288,1756211441369,-55752.91606112,0.000393,2]
[381448289,1756211441385,-314247.08393888,0.000393,2]
[381448290,1756211441395,-500.0,0.000393,60]
[381448291,1756211441405,-198.0,0.000393,60]
[381448292,1756211441414,-151.0,0.000393,30]
[381448293,1756211441423,-151.0,0.000393,30]
[381448294,1756211441432,-151.0,0.000393,30]
[381448295,1756211441442,-186.927426,0.000393,30]
[381448296,1756211441451,-1720.52168,0.000393,30]
[381448297,1756211441461,-1720.52168,0.000393,30]
[381448298,1756211441471,-1720.52168,0.000393,30]
[381448299,1756211441480,-1720.52168,0.000393,30]
[381448300,1756211441490,-151.0,0.000393,30]
[381448301,1756211441499,-151.0,0.000393,30]
[381448302,1756211441508,-979.04866883,0.0003938,3]
[381448303,1756211441517,-2434.74389024,0.00039389,3]
[381448304,1756211441526,-2524.82941417,0.00039389,3]
[381448305,1756211441535,-2155.1867163,0.00039389,3]
[381448317,1756211443324,-163.88,0.00029183,15]
[381448318,1756211443333,-163.88,0.00029283,15]
[381448319,1756211443343,-163.89318817,0.00029383,15]
[381448320,1756211443352,-376.39720582,0.00031985,2]
[381448322,1756211443361,-160.0,0.00038965,2]
[381448324,1756211443371,-160.0,0.00038965,2]
[381448325,1756211443380,-189.84344737,0.00039195,2]
[381448326,1756211443389,-151.0,0.00039195,7]
[381448327,1756211443398,-151.0,0.00039195,7]
[381448328,1756211443407,-463.0613862,0.00039389,3]
[381448329,1756211443416,-2715.12328229,0.00039389,3]
[381448330,1756211443426,-2815.58284374,0.00039389,3]
[381448331,1756211443435,-2919.75940895,0.00039389,3]
[381448333,1756211443444,-3027.79050709,0.00039389,3]
[381448335,1756211443454,-1613.82387662,0.00039389,3]
[381448337,1756211443463,-225.98,0.0003939,3]
[381448339,1756211443472,-677.96,0.0003939,3]
[381448341,1756211443482,-3916.19467532,0.0003939,3]
[381448343,1756211443491,-201.93286099,0.00039399,120]
[381448345,1756211443500,-250.0,0.00039399,120]
[381448347,1756211443510,-250.0,0.00039399,120]
[381448349,1756211443519,-250.0,0.00039399,120]
[381448351,1756211443528,-250.0,0.00039399,120]
[381448353,1756211443538,-250.0,0.00039399,120]
[381448355,1756211443548,-250.0,0.00039399,120]
[381448357,1756211443558,-250.0,0.00039399,120]
[381448359,1756211443567,-250.0,0.00039399,120]
[381448361,1756211443578,-250.0,0.00039399,120]
[381448363,1756211443590,-250.0,0.00039399,120]
[381448365,1756211443599,-250.0,0.00039399,120]
[381448367,1756211443608,-250.0,0.00039399,120]
[381448369,1756211443618,-9852.61643654,0.000394,120]
[381448522,1756211447646,366.55065525,0.000199,2]
[381448523,1756211447907,366.55065505,0.00021627,2]
[381448524,1756211448122,366.55065505,0.00023353,2]
[381448525,1756211448331,366.55065505,0.0002508,2]
[381448526,1756211448675,366.55065505,0.00026806,6]
[381448527,1756211450127,-183.97301641,0.00028533,10]
[381448543,1756211584258,2000.0,0.000253,2]
[381448544,1756211584298,869.85542898,0.00026396,2]
[381448545,1756211621587,348.41839821,0.000199,2]
[381448546,1756211621675,348.418398,0.00021627,2]
[381448547,1756211621831,348.418398,0.00023353,2]
[381448548,1756211621991,348.418398,0.0002508,2]
[381448549,1756211622135,348.418398,0.00026806,6]
[381448550,1756211657079,200.0,0.00028,2]
[381448551,1756211806659,354.98838771,0.000199,2]
[381448552,1756211806798,354.98838751,0.00021627,2]
[381448553,1756211806923,354.98838751,0.00023353,2]
[381448554,1756211807042,354.98838751,0.0002508,2]
[381448555,1756211807148,354.98838751,0.00026806,6]
[381448557,1756211935100,786.0,0.0002819,2]
[381448558,1756211984271,350.64458341,0.000199,2]
[381448559,1756211984410,350.64458321,0.00021627,2]
[381448560,1756211984510,350.64458321,0.00023353,2]
[381448561,1756211984605,350.64458321,0.0002508,2]
[381448562,1756211984725,350.64458321,0.00026806,6]
[381448563,1756212171852,107788.828444,0.0003188,120]
[381448564,1756212182346,355.33030867,0.000199,2]
[381448565,1756212182469,355.33030846,0.00021627,2]
[381448566,1756212182602,355.33030846,0.00023353,2]
[381448567,1756212182729,355.33030846,0.0002508,2]
[381448568,1756212183104,355.33030846,0.00026806,6]
[381448569,1756212205894,215.81711042,0.0002718,2]
[381448570,1756212207220,161.86283281,0.0002498,2]
[381448571,1756212208362,161.86283281,0.0002498,2]
[381448572,1756212232484,207.0,0.00026,120]
[381448573,1756212365242,2091.82833563,0.000199,2]
[381448574,1756212365413,2091.82833544,0.00021627,2]
[381448575,1756212365541,2091.82833544,0.00023353,2]
[381448576,1756212365688,2091.82833544,0.0002508,2]
[381448577,1756212365820,2091.82833544,0.00026806,6]
[381448578,1756212546259,1812.38914805,0.000199,2]
[381448579,1756212546369,1812.38914778,0.00021627,2]
[381448580,1756212546503,1812.38914778,0.00023353,2]
[381448581,1756212546722,1812.38914778,0.0002508,2]
[381448582,1756212546833,1812.38914778,0.00026806,6]
[381448676,1756212636312,-1812.38914778,0.00028533,10]
[381448678,1756212636323,-363.75004704,0.000289,98]
[381448680,1756212636332,-217.18350301,0.00029,10]
[381448682,1756212636341,-711.301348,0.00029024,2]
[381448684,1756212636350,-1200.0,0.00029083,2]
[381448686,1756212636360,-300.0,0.00029083,2]
[381448688,1756212636369,-300.0,0.00029083,2]
[381448690,1756212636378,-300.0,0.00029083,2]
[381448692,1756212636388,-3319.56705,0.00029084,2]
[381448694,1756212636397,-181.700434,0.00029136,2]
[381448696,1756212636407,-773.792321,0.00029589,120]
[381448698,1756212636416,-160.0,0.00029861,2]
[381448700,1756212636425,-160.0,0.00029866,2]
[381448702,1756212636434,-1038.73023789,0.00029872,2]
[381448704,1756212636443,-36563.83642651,0.0002999,2]
[381448727,1756212638483,-500.0,0.0002999,2]
[381448728,1756212638495,-14297.76557517,0.0002999,2]
[381448729,1756212638511,-16886.8194906,0.00030137,2]
[381448730,1756212638523,-915.82,0.00030247,10]
[381448731,1756212638533,-763.18,0.00030247,10]
[381448732,1756212638542,-1038.94,0.00030247,10]
[381448733,1756212638551,-500.0,0.00030257,2]
[381448734,1756212638560,-347.68086814,0.00030257,2]
[381448735,1756212638569,-500.0,0.00030257,2]
[381448737,1756212638579,-500.0,0.00030257,2]
[381448738,1756212638588,-500.0,0.00030257,2]
[381448739,1756212638597,-500.0,0.00030257,2]
[381448740,1756212638606,-500.0,0.00030257,2]
[381448741,1756212638615,-500.0,0.00030257,2]
[381448742,1756212638624,-500.0,0.00030257,2]
[381448743,1756212638633,-500.0,0.00030257,2]
[381448744,1756212638642,-500.0,0.00030257,2]
[381448745,1756212638651,-500.0,0.00030257,2]
[381448746,1756212638661,-360.21154166,0.00030257,2]
[381448747,1756212638670,-620.4482156,0.00030257,2]
[381448748,1756212638679,-500.0,0.00030257,2]
[381448749,1756212638688,-261.28254002,0.00030257,2]
[381448750,1756212638697,-500.0,0.00030257,2]
[381448751,1756212638707,-500.0,0.00030257,2]
[381448752,1756212638716,-502.31289663,0.00030257,2]
[381448753,1756212638725,-500.0,0.00030257,2]
[381448754,1756212638735,-500.0,0.00030257,2]
[381448755,1756212638744,-303.51427525,0.00030257,2]
[381448756,1756212638755,-500.0,0.00030257,2]
[381448757,1756212638764,-500.0,0.00030257,2]
[381448758,1756212638774,-500.0,0.00030257,2]
[381448759,1756212638783,-307.73272781,0.00030257,2]
[381448760,1756212638792,-500.0,0.00030257,2]
[381448761,1756212638801,-500.0,0.00030257,2]
[381448762,1756212638811,-500.0,0.00030257,2]
[381448763,1756212638820,-500.0,0.00030257,2]
[381448764,1756212638830,-500.0,0.00030257,2]
[381448765,1756212638839,-500.0,0.00030257,2]
[381448766,1756212638848,-500.0,0.00030257,2]
[381448767,1756212638858,-373.51169731,0.00030257,2]
[381448768,1756212638867,-500.0,0.00030257,2]
[381448769,1756212638877,-500.0,0.00030257,2]
[381448770,1756212638886,-500.0,0.00030257,2]
[381448771,1756212638896,-500.0,0.00030257,2]
[381448772,1756212638905,-500.0,0.00030257,2]
[381448773,1756212638915,-500.0,0.00030257,2]
[381448774,1756212638925,-500.0,0.00030257,2]
[381448775,1756212638934,-500.0,0.00030257,2]
[381448776,1756212638943,-500.0,0.00030257,2]
[381448777,1756212638953,-500.0,0.00030257,2]
[381448778,1756212638962,-500.0,0.00030257,2]
[381448779,1756212638972,-500.0,0.00030257,2]
[381448780,1756212638983,-500.0,0.00030257,2]
[381448781,1756212638992,-500.0,0.00030257,2]
[381448782,1756212639001,-500.0,0.00030257,2]
[381448783,1756212639011,-500.0,0.00030257,2]
[381448784,1756212639020,-500.0,0.00030257,2]
[381448785,1756212639029,-500.0,0.00030257,2]
[381448786,1756212639038,-500.0,0.00030257,2]
[381448787,1756212639047,-500.0,0.00030257,2]
[381448788,1756212639058,-454.04250008,0.00030257,2]
[381448789,1756212639071,-443.65967246,0.00030257,2]
[381448790,1756212639080,-500.0,0.00030257,2]
[381448791,1756212639089,-500.0,0.00030257,2]
[381448792,1756212639098,-500.0,0.00030257,2]
[381448793,1756212639108,-500.0,0.00030257,2]
[381448794,1756212639117,-500.0,0.00030257,2]
[381448795,1756212639126,-500.0,0.00030257,2]
[381448796,1756212639136,-500.0,0.00030257,2]
[381448797,1756212639146,-1600.0,0.00030258,2]
[381448798,1756212639156,-50000.0,0.00030258,2]
[381448799,1756212639166,-1812.38914778,0.00030259,13]
[381448800,1756212639176,-500.0,0.00030531,2]
[381448801,1756212639186,-500.0,0.00030805,2]
[381448802,1756212639195,-11906.92627495,0.0003087,2]
[381448803,1756212639205,-2366.17062433,0.000309,2]
[381448804,1756212639450,-66980.3762173,0.0003096,2]
[381448805,1756212639460,-3257.01054389,0.0003096,2]
[381448806,1756212639471,-66980.3762173,0.0003097,2]
[381448807,1756212639480,-3257.01054389,0.0003097,2]
[381448808,1756212639489,-179.33548377,0.00030971,2]
[381448809,1756212639503,-500.0,0.00030973,5]
[381448810,1756212639512,-501.63845286,0.00030973,5]
[381448811,1756212639522,-500.63181945,0.00030973,5]
[381448812,1756212639531,-501.52409919,0.00030973,5]
[381448813,1756212639541,-501.80461637,0.00030973,5]
[381448814,1756212639552,-500.0,0.00030973,5]
[381448815,1756212639561,-500.0,0.00030973,2]
[381448816,1756212639571,-500.0,0.00030973,5]
[381448817,1756212639580,-501.85733234,0.00030973,5]
[381448818,1756212639590,-500.0,0.00030973,5]
[381448819,1756212639600,-587.34314269,0.00030973,5]
[381448820,1756212639610,-502.15933556,0.00030973,5]
[381448821,1756212639619,-500.0,0.00030973,5]
[381448822,1756212639629,-473.30564536,0.00030973,5]
[381448823,1756212639638,-500.0,0.00030973,5]
[381448824,1756212639647,-502.83892234,0.00030973,5]
[381448825,1756212639656,-500.0,0.00030973,5]
[381448826,1756212639666,-464.55093652,0.00030973,5]
[381448827,1756212639675,-343.40636136,0.00030973,5]
[381448828,1756212639685,-500.0,0.00030973,5]
[381448829,1756212639694,-500.0,0.00030973,5]
[381448830,1756212639704,-500.0,0.00030973,5]
[381448831,1756212639714,-500.0,0.00030973,5]
[381448832,1756212639724,-500.0,0.00030973,5]
[381448833,1756212639733,-500.0,0.00030973,5]
[381448834,1756212639742,-160.0,0.00030987,2]
[381448835,1756212639754,-1000.0285716,0.00030989,2]
[381448836,1756212639764,-133960.752435,0.0003099,2]
[381448837,1756212639773,-6514.02108778,0.0003099,2]
[381448838,1756212639783,-163.0,0.00031,120]
[381448839,1756212639792,-6755.4,0.00031,7]
[381448840,1756212639802,-151.0,0.00031,18]
[381448841,1756212639811,-3678.03,0.00031,7]
[381448842,1756212639821,-93702.96,0.00031,7]
[381448843,1756212639830,-376.39720582,0.00031,7]
[381448844,1756212639840,-160.0,0.00031,7]
[381448845,1756212639850,-217.18350301,0.00031,7]
[381448846,1756212639859,-160.0,0.00031,7]
[381448847,1756212639869,-500.0,0.00031079,2]
[381448848,1756212639879,-151.0,0.000311,17]
[381448849,1756212639888,-2366.17062432,0.0003115,2]
[381448850,1756212639898,-151.0,0.000312,20]
[381448851,1756212639908,-151.0,0.000313,13]
[381448852,1756212639917,-500.0,0.00031353,2]
[381448853,1756212639927,-420.0,0.00031374,2]
[381448854,1756212639937,-151.0,0.000314,17]
[381448855,1756212639946,-2366.17062432,0.000314,2]
[381448856,1756212639956,-151.0,0.000315,13]
[381448857,1756212639966,-1680.0,0.00031509,3]
[381448858,1756212639977,-1002.46455858,0.00031521,5]
[381448859,1756212639987,-501.78666609,0.00031521,5]
[381448860,1756212639998,-365.60859336,0.00031521,5]
[381448861,1756212640008,-1000.0,0.00031521,5]
[381448862,1756212640017,-508.35248554,0.00031521,5]
[381448863,1756212640027,-1000.0,0.00031521,5]
[381448864,1756212640037,-1000.0,0.00031521,5]
[381448865,1756212640047,-260.0,0.00031535,2]
[381448866,1756212640057,-151.0,0.000316,17]
[381448867,1756212640067,-513.4921152,0.00031627,2]
[381448868,1756212640080,-2366.17062432,0.0003165,2]
[381448869,1756212640090,-151.0,0.000317,11]
[381448871,1756212640100,-66980.3762173,0.00031752,2]
[381448873,1756212640112,-3257.01054389,0.00031752,2]
[381448875,1756212640123,-6514.02108778,0.00031754,2]
[381448877,1756212640132,-3257.01054389,0.00031763,2]
[381448879,1756212640142,-6514.02108778,0.00031764,2]
[381448881,1756212640153,-3257.01054389,0.00031772,2]
[381448883,1756212640162,-501.50429243,0.00031773,5]
[381448886,1756212640172,-559.99372576,0.00031773,5]
[381448888,1756212640182,-500.0,0.00031773,5]
[381448890,1756212640192,-500.0,0.00031773,5]
[381448892,1756212640202,-500.0,0.00031773,5]
[381448894,1756212640213,-500.0,0.00031773,5]
[381448896,1756212640223,-500.0,0.00031773,5]
[381448898,1756212640233,-500.0,0.00031773,5]
[381448900,1756212640243,-500.0,0.00031773,5]
[381448902,1756212640255,-500.0,0.00031773,5]
[381448904,1756212640265,-500.0,0.00031773,5]
[381448906,1756212640275,-501.20025594,0.00031773,5]
[381448908,1756212640285,-500.0,0.00031773,5]
[381448910,1756212640295,-500.0,0.00031773,5]
[381448912,1756212640304,-500.0,0.00031773,5]
[381448914,1756212640313,-500.0,0.00031773,5]
[381448916,1756212640323,-500.0,0.00031773,5]
[381448918,1756212640332,-500.0,0.00031773,5]
[381448920,1756212640341,-648.78561667,0.00031773,5]
[381448922,1756212640351,-500.57010825,0.00031773,5]
[381448924,1756212640361,-610.60501173,0.00031773,5]
[381448926,1756212640370,-500.0,0.00031773,5]
[381448928,1756212640380,-500.0,0.00031773,5]
[381448930,1756212640389,-500.0,0.00031773,5]
[381448932,1756212640398,-500.0,0.00031773,5]
[381448934,1756212640408,-500.0,0.00031773,5]
[381448936,1756212640417,-500.0,0.00031773,2]
[381448938,1756212640427,-202.01391114,0.00031773,5]
[381448940,1756212640436,-500.0,0.00031773,5]
[381448942,1756212640445,-500.0,0.00031773,5]
[381448944,1756212640454,-500.0,0.00031773,5]
[381448946,1756212640464,-26056.0843511,0.00031774,2]
[381448949,1756212640473,-2806.93,0.00031782,4]
[381448950,1756212640482,-151.0,0.00031784,7]
[381448953,1756212640492,-160.88315,0.00031784,7]
[381448955,1756212640504,-151.0,0.00031784,7]
[381448957,1756212640513,-155.135601,0.00031784,7]
[381448959,1756212640523,-151.0,0.00031784,7]
[381448961,1756212640532,-151.0,0.00031784,7]
[381448963,1756212640541,-232.499321,0.00031784,7]
[381448965,1756212640551,-151.0,0.00031784,7]
[381448967,1756212640560,-151.0,0.00031784,7]
[381448969,1756212640570,-151.0,0.00031784,7]
[381448971,1756212640579,-151.0,0.00031784,7]
[381448973,1756212640589,-151.0,0.00031784,7]
[381448975,1756212640599,-151.0,0.00031784,7]
[381448977,1756212640612,-151.0,0.00031784,7]
[381448979,1756212640621,-151.0,0.00031784,7]
[381448981,1756212640630,-151.0,0.00031784,7]
[381448983,1756212640639,-185.79721,0.00031784,7]
[381448985,1756212640649,-185.79721,0.00031784,7]
[381448987,1756212640658,-185.79721,0.00031784,7]
[381448989,1756212640668,-185.79721,0.00031784,7]
[381448991,1756212640677,-151.0,0.00031784,7]
[381448993,1756212640687,-151.0,0.00031784,7]
[381448995,1756212640697,-151.0,0.00031784,7]
[381448997,1756212640707,-194.381975,0.00031784,7]
[381448999,1756212640716,-194.381975,0.00031784,7]
[381449001,1756212640726,-194.381975,0.00031784,7]
[381449004,1756212640735,-151.0,0.00031784,7]